Cogmind - Beta 15 @@@ ROGUE MODE // 2025.06.18 @ 21:25:40 Player: LightKnight Result: Destroyed by Executioner with Helical Railgun Performance ------------- Evolutions (9) 4500 Regions Visited (24) 4800 Robots Destroyed (184) 920 Value Destroyed (8357) 8357 Prototype IDs (46) 920 Alien Tech Used (0) 0 Bonus (5046) 5046 TOTAL SCORE: 24543 Bonus ------- High Alert Combat Kills 142 Follower Combat Kills 1056 Entered Garrisons 400 Used RIF Installer 1000 Aligned with FarCom 300 Met R17 at Cetus 500 Met R17 at Research 2000 Friendly Fire -352 Cogmind --------- Core Integrity 0/1600 Matter 196/300 Energy 100/100 System Corruption 4% Temperature Cool (0) Movement Core (50) Location -1/Command Parts ------- > --- POWER (3) -------- (None) > --- PROPULSION (7) --- (None) > --- UTILITY (11) ----- (None) > --- WEAPON (4) ------- (None) > --- INVENTORY (5) ---- Light Quantum Reactor Sensor Drone Bay (20/20) Railgun Advanced KE Penetrator Peak State ------------ > --- POWER ------------ Light Antimatter Reactor Particle Reactor Light Particle Reactor > --- PROPULSION ------- Centrium Heavy Treads Centrium Heavy Treads Centrium Heavy Treads > --- UTILITY ---------- Advanced Heat Sink Advanced Heat Sink Advanced Heat Sink Advanced Heat Sink Huge Storage Unit Energy Well Advanced Visual Processing Unit Quantum Capacitor Centrium Medium Armor Plating > --- WEAPON ----------- Advanced Variable Charge Gun Advanced Variable Charge Gun HERF Cannon Enhanced Nova Cannon > --- INVENTORY -------- Light Antimatter Reactor Improved Treads Advanced Heat Sink Energy Well Seismic Detector Experimental Reaction Control System Layered Medium Armor Plating Improved Point Defense System Sensor Drone Bay Wave Gun Dispersion Rifle Advanced Variable Charge Gun HERF Cannon HERF Cannon Nova Cannon KE Penetrator Railgun Advanced KE Penetrator Advanced KE Penetrator Heavy Rocket Launcher Tiamat Missile Launcher Lance [Rating: 174] Favorites ----------- Power Deuterium Engine Engine Deuterium Engine Power Core Neutrino Core Reactor Particle Reactor Propulsion Armored Treads Treads Armored Treads Leg Flexi-carbon Leg Hover Unit Cooled Gravmag System Flight Unit Field Propulsion Drive Utility Advanced Heat Sink Device Advanced Heat Sink Storage Large Storage Unit Processor Advanced Visual Processing Unit Hackware Hacking Suite Protection Improved Light Armor Plating Weapon Advanced Beam Rifle Energy Gun Advanced Beam Rifle Energy Cannon Heavy Ion Cannon Ballistic Gun Advanced KE Penetrator Launcher Tiamat Missile Launcher Impact Weapon Flail Piercing Weapon Lance Build | -11 -10 -10 -10 -9 -8 -7 -7 -7 -7 -5 -5 -5 -4 -4 -4 -4 -4 -3 -2 -2 -2 -2 -1 -1 ------- Run | Yrd Mat Min Exi Min Mat Fac Sto Rec Scr Fac Was Fac Fac Ext Cet Arc Hub Res Res Gar Res Gar Acc Com Slots Evolved 18 | . . . . . 4 2 . . . 4 . . 2 . . . . 2 2 . . . 2 . Power 2 | . . . . . . . . . . 1 . . . . . . . . 1 . . . . . Propulsion 5 | . . . . . 1 . . . . 1 . . 2 . . . . . . . . . 1 . Utility 9 | . . . . . 2 2 . . . 1 . . . . . . . 2 1 . . . 1 . Weapon 2 | . . . . . 1 . . . . 1 . . . . . . . . . . . . . . Parts Attached 206 | 1 6 12 . . 31 13 3 2 1 11 3 13 3 55 17 1 . 10 6 7 7 . 3 1 Power 25 | . 1 2 . . 2 1 . . . 2 1 1 . 9 2 1 . 1 . 2 . . . . Engine 5 | . 1 1 . . 2 1 . . . . . . . . . . . . . . . . . . Core 13 | . . 1 . . . . . . . 2 1 1 . 7 1 . . . . . . . . . Reactor 7 | . . . . . . . . . . . . . . 2 1 1 . 1 . 2 . . . . Propulsion 65 | . 2 4 . . 10 4 . . . 4 2 5 1 21 4 . . . . . 6 . 1 1 Treads 29 | . 2 1 . . 6 4 . . . 4 2 . . 6 4 . . . . . . . . . Leg 18 | . . 3 . . 4 . . . . . . . . 11 . . . . . . . . . . Wheel . | . . . . . . . . . . . . . . . . . . . . . . . . . Hover 1 | . . . . . . . . . . . . 1 . . . . . . . . . . . . Flight 17 | . . . . . . . . . . . . 4 1 4 . . . . . . 6 . 1 1 Utility 59 | . 2 2 . . 8 4 3 2 1 3 . 6 1 10 4 . . 5 3 3 1 . 1 . Device 25 | . . 1 . . 4 1 1 2 1 3 . . 1 4 2 . . 1 2 2 . . . . Storage 4 | . 1 . . . . . . . . . . . . 1 . . . 1 . 1 . . . . Processor 13 | . 1 . . . . 2 1 . . . . 6 . 1 1 . . 1 . . . . . . Hackware 2 | . . . . . . . . . . . . . . . . . . . . . 1 . 1 . Protection 15 | . . 1 . . 4 1 1 . . . . . . 4 1 . . 2 1 . . . . . Artifact . | . . . . . . . . . . . . . . . . . . . . . . . . . Weapon 57 | 1 1 4 . . 11 4 . . . 2 . 1 1 15 7 . . 4 3 2 . . 1 . Energy Gun 30 | . . 1 . . 10 3 . . . 1 . . . 7 5 . . 1 2 . . . . . Energy Cannon 8 | . . 1 . . . 1 . . . 1 . . 1 . . . . 2 1 1 . . . . Ballistic Gun 14 | 1 1 2 . . 1 . . . . . . . . 6 2 . . . . . . . 1 . Ballistic Cannon . | . . . . . . . . . . . . . . . . . . . . . . . . . Launcher 2 | . . . . . . . . . . . . . . 1 . . . . . 1 . . . . Special Weapon . | . . . . . . . . . . . . . . . . . . . . . . . . . Impact Weapon 1 | . . . . . . . . . . . . 1 . . . . . . . . . . . . Slashing Weapon . | . . . . . . . . . . . . . . . . . . . . . . . . . Piercing Weapon 2 | . . . . . . . . . . . . . . 1 . . . 1 . . . . . . Special Melee Weapon . | . . . . . . . . . . . . . . . . . . . . . . . . . Unidentified Prototypes 15 | . . 1 . . 3 2 . . . . . 1 . . 4 . . 2 . 2 . . . . Corrupted Parts 1 | . . . . . . . . . . . . . . . . . . . . 1 . . . . System Corruption 1 | . . . . . . . . . . . . . . . . . . . . 1 . . . . Parts Lost 83 | . . 7 . . 5 . . . . 3 7 1 . 24 7 . . 3 2 12 . 9 2 1 Power 12 | . . 1 . . . . . . . . 2 . . 2 2 . . 1 1 2 . 1 . . Propulsion 29 | . . 2 . . . . . . . . 1 . . 12 2 . . . . 4 . 6 1 1 Utility 19 | . . . . . 3 . . . . 2 1 . . 2 2 . . 2 . 4 . 2 1 . Weapon 23 | . . 4 . . 2 . . . . 1 3 1 . 8 1 . . . 1 2 . . . . Highest Loss Streak 11 | . . 7 . . 3 . . . . 2 4 1 . 11 6 . . 2 2 9 . 8 1 1 To Critical Strikes 1 | . . . . . . . . . . . . . . 1 . . . . . . . . . . Average Backups 12 | 6 9 7 10 11 11 11 12 12 12 11 9 4 4 9 17 21 23 23 21 18 3 3 3 4 Power 1 | 1 . . 1 3 2 1 1 1 1 . . . . 1 2 2 3 2 2 . . . . 1 Propulsion 3 | 4 4 3 5 4 3 4 5 5 5 5 5 . . . 2 1 1 1 1 . . . . . Utility 3 | . 2 3 3 3 2 2 3 3 3 2 2 2 2 3 6 7 8 6 5 5 1 1 1 1 Weapon 4 | 1 1 . . . 2 3 3 3 3 1 1 1 1 3 6 9 11 13 12 11 2 2 1 2 Tool/Special . | . . . . . . . . . . . . . . . . . . . . . . . . . Unused Backups 29 | . 2 1 1 . 5 7 2 . . 1 2 1 . 1 . . . 1 . 3 . . . 2 Power 5 | . . 1 . . 3 . . . . . . . . . . . . . . . . . . 1 Propulsion 6 | . . . . . . 2 . . . 1 1 1 . 1 . . . . . . . . . . Utility 8 | . 2 . 1 . 1 2 1 . . . . . . . . . . . . 1 . . . . Weapon 8 | . . . . . . 3 1 . . . . . . . . . . 1 . 2 . . . 1 Tool/Special 2 | . . . . . 1 . . . . . 1 . . . . . . . . . . . . . Average Slot Usage (%) 85 | . 95 97 100 100 85 96 99 100 96 98 52 20 54 84 81 84 84 76 84 71 15 19 2 3 Engine 4 | . 13 11 14 14 8 7 6 7 7 1 . . . . . . . . . . . . . . Core 1 | . . 1 . . . . . . . 9 4 . 3 5 5 . . 1 2 . . . . . Reactor 1 | . . . . . . . . . . . . . . 2 4 9 10 6 8 11 1 2 . . Treads 15 | . 26 5 . . 15 23 23 23 23 22 12 . . 6 15 15 15 14 13 10 . . . . Leg 4 | . 1 21 28 28 11 . . . . . . . . 16 . . . . . . . . . . Device 9 | . . . . . 8 12 15 15 11 17 13 . . 8 11 10 10 14 20 20 3 1 . . Storage 6 | . 14 14 14 14 9 7 7 7 7 5 4 . . 3 5 5 5 4 8 5 . . . . Processor 10 | . 10 7 . . . 12 15 15 15 9 4 16 27 15 12 15 15 9 6 3 . . . . Protection 5 | . . 6 14 14 6 8 7 7 7 5 2 . . 4 4 5 5 5 5 3 . . . . Energy Gun 14 | . . . . . 26 17 23 23 23 22 4 . . 11 14 15 15 17 10 7 . . . . Energy Cannon 2 | . . 11 14 14 . 4 . . . . 3 . 3 . . . . 1 6 6 . . . . Ballistic Gun 3 | . 27 15 14 14 . . . . . . . . . 4 4 5 5 . . . . . . . Peak Build Rating 174 | 6 8 15 13 12 36 52 48 50 50 83 72 63 69 102 141 143 143 153 169 174 61 61 14 17 Average Rating 64 | 6 7 8 10 12 29 44 47 49 48 74 36 19 59 85 120 141 143 145 164 143 30 27 5 14 On Entrance 54 | 6 6 8 9 12 12 35 48 48 50 50 72 2 63 34 93 138 143 143 144 164 13 61 2 3 Naked Turns 375 | . . . . . . . . . . . 33 150 . . . . . . . 2 5 1 171 13 Heaviest Build 185 | 11 28 34 34 34 51 54 44 44 41 60 60 5 15 140 145 148 148 164 185 179 14 14 . . Greatest Support 240 | 20 40 40 20 20 60 68 68 68 68 109 109 28 28 191 240 240 240 240 240 240 42 42 8 15 Greatest Overweight (x) 4 | . 1 3 1 1 1 1 . . . . 1 . 4 2 . . . . . . . . . . Average Overweight (x) . | . . 1 1 1 . . . . . . . . . . . . . . . . . . . . Largest Inventory Capacity 25 | 8 15 15 15 15 15 15 15 15 15 15 15 5 5 25 25 25 25 25 25 25 5 5 5 5 Average Capacity 16 | 8 14 15 15 15 15 15 15 15 15 15 13 5 5 18 25 25 25 25 25 21 5 5 5 5 Most Carried 25 | 6 11 12 15 14 15 15 15 15 15 15 13 5 5 22 25 24 24 25 24 25 5 3 4 4 Average Carried 14 | 6 9 7 12 14 14 14 14 15 15 14 9 4 4 9 18 22 24 23 22 17 3 3 3 4 Final Capacity 25 | 8 15 15 15 15 15 15 15 15 15 15 5 5 5 25 25 25 25 25 25 5 5 5 5 5 Final Carried 25 | 6 11 10 14 14 15 15 15 15 15 13 5 4 4 15 19 24 24 25 23 4 3 3 4 4 Class Distribution -------------------- 23% | Scavenger-Tank 23% | Mutant 18% | Gunner 13% | Skirmisher 12% | Tank 4% | Scavenger-Gunner Dominant Class ---------------- Mutant | -10/Materials Mutant | -10/Mines Mutant | -10/Exiles Mutant | -9/Mines Skirmisher | -8/Materials Gunner | -7/Factory Tank | -7/Storage Skirmisher | -7/Recycling Gunner | -7/Scraptown Tank | -5/Factory Mutant | -5/Waste Mutant | -5/Factory Mutant | -4/Factory Scavenger-Gunner | -4/Extension Scavenger-Tank | -4/Cetus Scavenger-Tank | -4/Archives Scavenger-Tank | -4/Hub_04(d) Scavenger-Tank | -3/Research Scavenger-Tank | -2/Research Scavenger-Tank | -2/Garrison Mutant | -2/Research Mutant | -2/Garrison Mutant | -1/Access Mutant | -1/Command Resources | -11 -10 -10 -10 -9 -8 -7 -7 -7 -7 -5 -5 -5 -4 -4 -4 -4 -4 -3 -2 -2 -2 -2 -1 -1 ----------- Run | Yrd Mat Min Exi Min Mat Fac Sto Rec Scr Fac Was Fac Fac Ext Cet Arc Hub Res Res Gar Res Gar Acc Com Matter Collected 3538 | 200 412 229 . . 405 201 40 32 10 132 7 71 9 929 305 124 . 100 122 115 . . 95 . Remotely . | . . . . . . . . . . . . . . . . . . . . . . . . . Salvage Created 10361 | . 403 519 . . 1583 1026 408 1435 . 619 360 63 47 1580 356 651 . 358 319 634 . . . . Parts 443 | . 21 29 . . 82 50 20 55 . 28 . 3 2 60 14 24 . 16 13 26 . . . . Haulers Intercepted 3 | . 2 . . . 1 . . . . . . . . . . . . . . . . . . . Recyclers Shooed 5 | . . 1 . . . 3 . 1 . . . . . . . . . . . . . . . . Parts Field Recycled . | . . . . . . . . . . . . . . . . . . . . . . . . . Retrieved Matter . | . . . . . . . . . . . . . . . . . . . . . . . . . Parts Self-Destructed . | . . . . . . . . . . . . . . . . . . . . . . . . . Prevented . | . . . . . . . . . . . . . . . . . . . . . . . . . Kills | -11 -10 -10 -10 -9 -8 -7 -7 -7 -7 -5 -5 -5 -4 -4 -4 -4 -4 -3 -2 -2 -2 -2 -1 -1 ------- Run | Yrd Mat Min Exi Min Mat Fac Sto Rec Scr Fac Was Fac Fac Ext Cet Arc Hub Res Res Gar Res Gar Acc Com Combat Hostiles Destroyed 137 | . 6 12 . . 27 19 7 1 . 10 2 5 . 19 5 4 . 4 5 11 . . . . Melee 2 | . . . . . . . . . . . . . . 2 . . . . . . . . . . Guns 99 | . 6 9 . . 26 12 6 1 . 9 1 . . 12 5 4 . 3 4 1 . . . . Cannons 13 | . . 2 . . . 5 . . . . 1 . . . . . . 1 . 4 . . . . AOE 15 | . . . . . 1 . . . . . . 5 . 5 . . . . . 4 . . . . Classes Destroyed 21 | . 3 3 . . 8 3 . . . . 1 . . 1 . . . 2 . . . . . . Worker 3 | . . . . . . 2 . . . . . . . . . . . 1 . . . . . . Builder 7 | . . . . . 1 1 . 2 . 1 . . . 2 . . . . . . . . . . Tunneler 2 | . . 1 . . . . . . . . . 1 . . . . . . . . . . . . Hauler 3 | . 2 . . . 1 . . . . . . . . . . . . . . . . . . . Recycler 16 | . 1 . . . 2 . . 10 . . . . . 3 . . . . . . . . . . Operator 11 | . . . . . 1 . . . . . . . . . . 9 . 1 . . . . . . Watcher 7 | . . . . . 2 2 . . . 1 . . 1 1 . . . . . . . . . . Swarmer 17 | . . . . . 3 . . . . 1 . 5 . 5 . . . . . 3 . . . . Grunt 49 | . 6 8 . . 12 10 3 . . 4 . . . 3 . . . . . 3 . . . . Brawler 1 | . . . . . 1 . . . . . . . . . . . . . . . . . . . Duelist 4 | . . . . . . 2 1 . . . . . . . . . . 1 . . . . . . Sentry 27 | . . 2 . . 7 1 3 1 . 1 . . . 6 . 4 . . . 2 . . . . Demolisher 1 | . . . . . . . . . . . . . . . . . . 1 . . . . . . Specialist 2 | . . . . . 2 . . . . . . . . . . . . . . . . . . . Hunter 4 | . . . . . 1 . . . . . . . . 2 . . . 1 . . . . . . Programmer 17 | . . . . . . 6 . . . 4 . . . . . . . . 5 2 . . . . Heavy 1 | . . . . . 1 . . . . . . . . . . . . . . . . . . . Behemoth 3 | . . . . . . . . . . . . . . 2 . . . . . 1 . . . . Compactor 2 | . . . . . . . . . . . 2 . . . . . . . . . . . . . Cetus Guard 5 | . . . . . . . . . . . . . . . 5 . . . . . . . . . Assembled 2 | . . 2 . . . . . . . . . . . . . . . . . . . . . . Butcher 1 | . . . . . . . . . . . . . . 1 . . . . . . . . . . Revision 1 | . . . . . . . . . . . . . . . . . . 1 . . . . . . Best Kill Streak 7 | . 3 4 . . 7 4 6 4 . 7 2 5 1 5 2 3 . 2 3 7 . . . . Combat Bots Only 7 | . 2 3 . . 6 3 6 1 . 6 2 5 . 5 2 2 . 2 3 7 . . . . Max Kills in Single Turn 5 | . 1 2 . . 2 2 1 1 . 2 1 5 1 5 1 1 . 1 1 1 . . . . Gunslinging 1 | . . . . . 1 . . . . . . . . . . . . . . . . . . . Exploded 5 | . . . . . 1 . . . . . . 5 . 5 . . . . . 1 . . . . Melee 1 | . . . . . . . . . . . . . . 1 . . . . . . . . . . Uniques/NPCs Destroyed . | . . . . . . . . . . . . . . . . . . . . . . . . . Combat | -11 -10 -10 -10 -9 -8 -7 -7 -7 -7 -5 -5 -5 -4 -4 -4 -4 -4 -3 -2 -2 -2 -2 -1 -1 -------- Run | Yrd Mat Min Exi Min Mat Fac Sto Rec Scr Fac Was Fac Fac Ext Cet Arc Hub Res Res Gar Res Gar Acc Com Hostile Shots Fired 1197 | . 24 101 . . 98 77 23 9 . 63 6 11 12 225 93 39 . 56 37 96 . 124 75 28 Missed 336 | . 6 20 . . 24 20 8 6 . 18 1 1 5 74 17 7 . 22 6 12 . 48 29 12 Intercepted 1 | . . . . . . . . . . . . . . . . . . 1 . . . . . . Hits 861 | . 18 81 . . 74 57 15 3 . 45 5 10 7 151 76 32 . 34 31 84 . 76 46 16 Melee 20 | . . 2 . . . 11 1 . . . 5 . . . . . . 1 . . . . . . Projectile 841 | . 18 79 . . 74 46 14 3 . 45 . 10 7 151 76 32 . 33 31 84 . 76 46 16 AOE 4 | . . . . . . . . . . 1 . . . 1 . . . 2 . . . . . . Critical Strikes 68 | . 2 3 . . 3 9 3 . . 4 2 . . 10 15 . . 2 6 4 . . 2 3 Part Disruptions 3 | . . . . . . 1 . . . . . . . . . . . . . 2 . . . . Damage Taken 20074 | . 236 1121 . . 1442 1072 181 28 . 733 219 762 128 3506 2044 869 . 994 836 2518 . 1572 1404 409 Core 4763 | . 22 201 . . 174 78 11 . . 14 34 620 103 392 79 24 . 28 73 118 . 1191 1335 266 Absorbed by Shields 399 | . . . . . . . 22 . . 195 . . . . . . . . . . . 182 . . Reduced by Siege Mode 635 | . . . . . . . . . . . . . . . 272 113 . . 38 212 . . . . Ignored by Resistances 68 | . . . . . . 68 . . . . . . . . . . . . . . . . . . Regen/Repaired (Parts) 107 | . 63 . . . 44 . . . . . . . . . . . . . . . . . . . Core Remaining (%) 55 | 100 . . . 10 68 . . . 87 . . 33 . . . . 48 97 . . . 4 . . Volleys Fired 618 | . 28 47 . . 55 43 17 29 . 28 18 . 53 62 47 68 1 40 11 69 . . 2 . Largest 4 | . 2 2 . . 3 3 3 3 . 4 4 . 1 4 3 4 3 4 4 1 . . 1 . Hottest 350 | . 40 83 . . 174 187 183 183 . 263 263 . 90 283 250 276 241 350 343 120 . . 35 . Shots Fired 1406 | . 56 88 . . 143 129 41 87 . 108 27 . 53 217 75 160 3 106 42 69 . . 2 . Gun 1226 | . 56 66 . . 143 107 41 87 . 107 19 . . 216 75 160 3 95 42 7 . . 2 . Cannon 174 | . . 22 . . . 22 . . . 1 8 . 53 . . . . 11 . 57 . . . . Launcher 6 | . . . . . . . . . . . . . . 1 . . . . . 5 . . . . Special . | . . . . . . . . . . . . . . . . . . . . . . . . . Kinetic 235 | . 56 60 . . 10 . . . . . . . . 43 35 29 . . . . . . 2 . Thermal 1050 | . . 28 . . 71 122 41 87 . 108 27 . 53 173 40 131 3 95 42 29 . . . . Explosive 6 | . . . . . . . . . . . . . . 1 . . . . . 5 . . . . Electromagnetic 115 | . . . . . 62 7 . . . . . . . . . . . 11 . 35 . . . . Robot Hit Streak 28 | . 9 20 . . 24 18 22 12 . 26 4 . 5 22 27 28 . 7 17 23 . . . . Robot Miss Streak 6 | . 3 3 . . 3 2 2 2 . 5 3 . . 5 2 6 . 4 2 2 . . . . Penetration Max 1 | . . . . . . . . . . . . . . 1 1 1 . . . . . . . . Secondary Targets 15 | . . 1 . . 5 1 1 . . 2 . . . 2 2 . . . 1 . . . . . Max Gunslinging Chain 1 | . . 1 . . 1 1 1 . . 1 . . . 1 1 . . . 1 . . . . . Capacitor 64 | . . . . . . . . . . . . . . . . . . . . 64 . . . . Shots Hit Robots 920 | . 37 69 . . 106 89 29 48 . 67 16 1 5 141 67 105 . 57 33 50 . . . . Core Hits 393 | . 17 22 . . 63 43 16 25 . 28 5 3 2 60 23 34 . 22 8 20 . . 2 . Critical Kills 5 | . . 1 . . . . . . . . . . . . . 3 . . 1 . . . . . Critical Parts Destroyed 11 | . 1 . . . 1 . . . . . . . . 1 2 4 . . 2 . . . . . Critical Strikes 70 | . 1 1 . . 5 12 2 2 . 2 1 . . 15 10 15 . . 4 . . . . . Burn 52 | . . . . . 4 12 2 2 . 2 1 . . 13 7 8 . . 1 . . . . . Meltdown 1 | . . 1 . . . . . . . . . . . . . . . . . . . . . . Destroy 16 | . 1 . . . 1 . . . . . . . . 1 3 7 . . 3 . . . . . Impale 1 | . . . . . . . . . . . . . . 1 . . . . . . . . . . Melee Attacks 12 | . . . . . . . . . . . . 6 . 6 . . . . . . . . . . Impact 6 | . . . . . . . . . . . . 6 . . . . . . . . . . . . Slashing . | . . . . . . . . . . . . . . . . . . . . . . . . . Piercing 6 | . . . . . . . . . . . . . . 6 . . . . . . . . . . Sneak Attacks 4 | . . . . . . . . . . . . 1 . 3 . . . . . . . . . . Combat Hostiles 1 | . . . . . . . . . . . . . . 1 . . . . . . . . . . Follow-up Attacks . | . . . . . . . . . . . . . . . . . . . . . . . . . Damage Inflicted 24032 | . 373 930 . 13 2314 2028 551 904 . 1524 516 789 174 4039 1694 2808 . 1718 1119 2526 . . 12 . Guns 18502 | . 373 650 . . 2110 1536 551 895 . 1470 360 . . 3381 1694 2790 . 1462 1119 111 . . . . Cannons 2708 | . . 276 . . . 438 . . . 33 156 . 174 . . . . 256 . 1375 . . . . Explosions 2269 | . . . . . 192 . . . . . . 697 . 340 . . . . . 1040 . . . . Melee 399 | . . . . . . . . . . . . 92 . 307 . . . . . . . . . . Ramming 154 | . . 4 . 13 12 54 . 9 . 21 . . . 11 . 18 . . . . . . 12 . Kinetic 3231 | . 373 582 . . 164 . . . . . . . . 542 873 697 . . . . . . . . Thermal 16881 | . . 344 . . 1186 1815 551 895 . 1503 516 697 174 2839 821 2093 . 1462 1119 866 . . . . Explosive 1380 | . . . . . . . . . . . . . . 340 . . . . . 1040 . . . . Electromagnetic 1987 | . . . . . 952 159 . . . . . . . . . . . 256 . 620 . . . . Impact 92 | . . . . . . . . . . . . 92 . . . . . . . . . . . . Slashing . | . . . . . . . . . . . . . . . . . . . . . . . . . Piercing 307 | . . . . . . . . . . . . . . 307 . . . . . . . . . . Highest Corruption 16 | . . . . . . 1 1 1 . 3 13 12 . . . . . . 7 16 16 16 4 4 Average Corruption 4 | . . . . . . 1 1 1 . 1 9 12 . . . . . . 6 8 16 16 2 4 Corruption Purged 5 | . . . . . . . . 1 . . 4 . . . . . . . . . . . . . Corruption Blocked 8 | . . . . . . . . . . . . . 5 1 . . . 1 1 . . . . . Effects 66 | . . . . . . . 2 6 . 6 9 15 . . . . . . 3 15 2 4 2 2 Message Errors 10 | . . . . . . . 2 1 . . 1 2 . . . . . . 1 2 . . . 1 Matter Fused 16 | . . . . . . . . 2 . 1 . 6 . . . . . . 1 5 1 . . . Heat Flow Errors 5 | . . . . . . . . 1 . . . 1 . . . . . . . 2 . . 1 . Energy Discharges 5 | . . . . . . . . 1 . . . 3 . . . . . . . . . 1 . . Parts Rejected 2 | . . . . . . . . . . . 1 . . . . . . . . 1 . . . . Parts Fused 1 | . . . . . . . . . . 1 . . . . . . . . . . . . . . Data Loss (minor) 9 | . . . . . . . . 1 . 1 3 1 . . . . . . . . 1 1 1 . Data Loss (major) 8 | . . . . . . . . . . . 2 2 . . . . . . . 3 . . . 1 Misfires 1 | . . . . . . . . . . . . . . . . . . . . 1 . . . . Misdirections 3 | . . . . . . . . . . . 1 . . . . . . . . . . 2 . . Weapon Failures 6 | . . . . . . . . . . 3 1 . . . . . . . 1 1 . . . . Overload Shots . | . . . . . . . . . . . . . . . . . . . . . . . . . Overflow Damage 381 | . . . . . 29 . . . . . . 275 16 8 . . . . . 53 . . . . Projectiles 39 | . . . . . . . . . . . . . 16 . . . . . . 23 . . . . Explosions 262 | . . . . . 29 . . . . . . 203 . . . . . . . 30 . . . . Melee 80 | . . . . . . . . . . . . 72 . 8 . . . . . . . . . . Knockbacks 1 | . . . . . . . . . . . . 1 . . . . . . . . . . . . Impact 1 | . . . . . . . . . . . . 1 . . . . . . . . . . . . Kinetic . | . . . . . . . . . . . . . . . . . . . . . . . . . Secondary . | . . . . . . . . . . . . . . . . . . . . . . . . . Self-Inflicted Damage 805 | . . . . . 152 . . . . . . 510 . . . . . . . 137 . . 6 . Shots 12 | . . . . . 2 . . . . . . 6 . . . . . . . 4 . . . . Rammed 14 | . . . . . 1 4 . 2 . 3 . . . . . 1 . . . . . . 3 . Targets Rammed 22 | . . 2 . 1 3 6 . 2 . 3 . . . 1 . 1 . . . . . . 3 . Kicked 5 | . . 2 . 1 1 . . . . . . . . 1 . . . . . . . . . . Crushed 3 | . . . . . 1 2 . . . . . . . . . . . . . . . . . . Highest Temperature 405 | . 52 235 . . 311 290 144 241 . 396 339 118 312 384 78 340 60 186 184 405 . . 122 . Average Temperature 91 | . 17 56 . . 78 78 68 38 . 148 143 67 94 109 40 126 40 71 81 88 . . 70 . Received Heat Transfer 2898 | . 168 513 . . 297 279 114 12 . 69 . . . 510 . 117 . 9 . 669 . 51 72 18 Effects 9 | . . . . . . . . . . . . . 4 3 . 1 . . . 1 . . . . Shutdowns 1 | . . . . . . . . . . . . . . 1 . . . . . . . . . . Energy Bleed 3 | . . . . . . . . . . . . . . 1 . 1 . . . 1 . . . . Interference 4 | . . . . . . . . . . . . . 4 . . . . . . . . . . . Damage (minor) 1 | . . . . . . . . . . . . . . 1 . . . . . . . . . . Siege Activations 7 | . . . . . . . . . . . . . . . 2 2 . . 1 2 . . . . Total Turns 249 | . . . . . . . . . . . . . . . 111 77 . . 19 42 . . . . Longest Duration 63 | . . . . . . . . . . . . . . . 63 53 . . 19 34 . . . . Martial Activations . | . . . . . . . . . . . . . . . . . . . . . . . . . Shielding Activations . | . . . . . . . . . . . . . . . . . . . . . . . . . Robots Disrupted . | . . . . . . . . . . . . . . . . . . . . . . . . . Combat Hostiles . | . . . . . . . . . . . . . . . . . . . . . . . . . Robots Corrupted 3 | . . . . . . . . . . . . 1 . . . . . . . 2 . . . . Combat Hostiles 2 | . . . . . . . . . . . . . . . . . . . . 2 . . . . Parts Fried 11 | . . . . . 2 1 . . . . . 2 . . . . . . . 6 . . . . Impact Corruptions 2 | . . . . . . . . . . . . 2 . . . . . . . . . . . . Robots Melted 6 | . . 1 . . . 2 1 . . 1 . . . . . . . . 1 . . . . . Combat Hostiles 6 | . . 1 . . . 2 1 . . 1 . . . . . . . . 1 . . . . . Parts Melted 71 | . . 1 . . 4 13 7 1 . 12 . . . 8 . 8 . 5 9 3 . . . . Heat Transferred 30303 | . . 742 . . 2679 3996 1221 1924 . 2788 1040 400 185 5922 1813 3663 . 1895 1295 740 . . . . Parts Sabotaged . | . . . . . . . . . . . . . . . . . . . . . . . . . Parts Stolen . | . . . . . . . . . . . . . . . . . . . . . . . . . Parts Stripped . | . . . . . . . . . . . . . . . . . . . . . . . . . Power Chain Reactions 3 | . . . . . 3 . . . . . . . . . . . . . . . . . . . Alert | -11 -10 -10 -10 -9 -8 -7 -7 -7 -7 -5 -5 -5 -4 -4 -4 -4 -4 -3 -2 -2 -2 -2 -1 -1 ------- Run | Yrd Mat Min Exi Min Mat Fac Sto Rec Scr Fac Was Fac Fac Ext Cet Arc Hub Res Res Gar Res Gar Acc Com Maximum Alert Level 2 | . . . . . 2 1 1 . . . . 1 . 1 . . . . . 1 . . . . Low Security (%) 90 | 100 100 100 . 100 48 86 73 100 . 100 100 90 100 90 100 100 100 100 100 89 100 100 100 100 Level 1 5 | . . . . . 8 13 26 . . . . 9 . 9 . . . . . 10 . . . . Level 2 4 | . . . . . 42 . . . . . . . . . . . . . . . . . . . Level 3 . | . . . . . . . . . . . . . . . . . . . . . . . . . Level 4 . | . . . . . . . . . . . . . . . . . . . . . . . . . Level 5 . | . . . . . . . . . . . . . . . . . . . . . . . . . High Security . | . . . . . . . . . . . . . . . . . . . . . . . . . Max Security . | . . . . . . . . . . . . . . . . . . . . . . . . . Peak Influence 571 | . 55 103 . 6 571 256 236 106 . 133 35 274 195 320 158 57 14 32 76 227 127 165 126 135 Initial 240 | . . . . . . 240 114 84 . . 35 . 123 11 158 . 4 . . 22 127 80 92 80 Average 70 | . 11 16 . . 271 92 145 26 . 35 5 28 94 77 49 6 1 3 24 74 118 73 72 96 Influence Increases 5992 | . 231 225 . 6 956 590 232 254 . 365 . 343 178 1197 179 201 16 124 136 325 . 165 194 75 Destroy 0b10 Robot/C 3040 | . 120 200 . . 540 380 140 20 . 260 . 100 . 660 160 80 . 60 100 220 . . . . Destroy 0b10 Robot/NC 330 | . 15 5 . . 35 25 . 105 . 15 . 5 5 60 5 45 . 10 . . . . . . Destroy Leader 564 | . 34 20 . . 166 104 40 . . 64 . 10 2 54 . . . 20 30 20 . . . . Allied During Kill 295 | . . . . . . . . . . 7 . . . 274 14 . . . . . . . . . Successful Hack 242 | . 16 . . 6 9 32 21 5 . . . 9 26 21 . . 14 24 . . . . 59 . Select Force Hacks 210 | . 30 . . . 60 . . 120 . . . . . . . . . . . . . . . . Disable Machine 300 | . . . . . 45 . 30 . . 15 . 120 . 15 . 60 . . . 15 . . . . Destroy Structure 261 | . 1 . . . 26 4 1 4 . 4 . 54 10 68 . 16 2 10 6 55 . . . . Partial Spotted 75 | . . . . . 15 . . . . . . . 45 . . . . . . . . . 15 . Lose Combat Pursuer 675 | . 15 . . . 60 45 . . . . . 45 90 45 . . . . . 15 . 165 120 75 Influence Decreases 5887 | . 231 138 87 6 428 866 268 470 . 264 101 89 409 936 463 188 29 124 106 128 120 117 223 96 Entered New Map 1233 | . . . 87 . . 288 138 132 . . 66 . 131 12 126 . 9 . . 8 100 27 63 46 Time Decay 3697 | . 231 118 . 6 378 578 130 338 . 244 10 79 278 492 207 188 20 114 86 . 20 . 140 40 Lost Part 672 | . . 20 . . 50 . . . . 20 20 10 . 212 70 . . 10 20 120 . 90 20 10 Lost Ally 285 | . . . . . . . . . . . 5 . . 220 60 . . . . . . . . . Squads Dispatched 48 | . 3 . . . 7 9 . . . 9 . 3 2 3 . . 1 3 1 . . . 7 . Investigation 10 | . 1 . . . 2 2 . . . . . . . 2 . . . 1 . . . . 2 . Extermination 13 | . . . . . . 5 . . . 4 . 1 1 . . . . . 1 . . . 1 . Reinforcement 20 | . 2 . . . 3 2 . . . 2 . 2 1 1 . . 1 2 . . . . 4 . Assault . | . . . . . . . . . . . . . . . . . . . . . . . . . Garrison 5 | . . . . . 2 . . . . 3 . . . . . . . . . . . . . . Intercept . | . . . . . . . . . . . . . . . . . . . . . . . . . Searches Triggered . | . . . . . . . . . . . . . . . . . . . . . . . . . Construction Impeded 2 | . . . . . . . . . . 1 . . . 1 . . . . . . . . . . Haulers Reinforced 2 | . . . . . . . . . . . . . . . . . . 2 . . . . . . Active Scanning Responses . | . . . . . . . . . . . . . . . . . . . . . . . . . Cargo Convoy Interrupts . | . . . . . . . . . . . . . . . . . . . . . . . . . Stealth | -11 -10 -10 -10 -9 -8 -7 -7 -7 -7 -5 -5 -5 -4 -4 -4 -4 -4 -3 -2 -2 -2 -2 -1 -1 --------- Run | Yrd Mat Min Exi Min Mat Fac Sto Rec Scr Fac Was Fac Fac Ext Cet Arc Hub Res Res Gar Res Gar Acc Com Distress Signals 21 | . . . . . 1 1 . 1 . . . . . 2 2 . . 11 . . . . 3 . Communications Jammed . | . . . . . . . . . . . . . . . . . . . . . . . . . Distress Signals . | . . . . . . . . . . . . . . . . . . . . . . . . . Times Spotted 319 | . 9 12 . . 37 25 7 1 . 21 6 12 7 46 11 20 . 28 5 13 2 23 16 18 Peak Tracking Total 21 | . 2 3 . . 5 3 4 1 . 5 4 5 3 9 5 2 1 8 3 8 2 21 8 11 Tactical Retreats 23 | . 1 1 . . 3 3 . . . . . 3 2 2 . . . . . 1 . 2 4 1 Traps | -11 -10 -10 -10 -9 -8 -7 -7 -7 -7 -5 -5 -5 -4 -4 -4 -4 -4 -3 -2 -2 -2 -2 -1 -1 ------- Run | Yrd Mat Min Exi Min Mat Fac Sto Rec Scr Fac Was Fac Fac Ext Cet Arc Hub Res Res Gar Res Gar Acc Com Traps Triggered 22 | . 1 . . . 2 5 . . . 1 . 1 5 2 . . . . 1 1 . 3 . . Indirectly . | . . . . . . . . . . . . . . . . . . . . . . . . . Trap Hack Attempts . | . . . . . . . . . . . . . . . . . . . . . . . . . Triggered . | . . . . . . . . . . . . . . . . . . . . . . . . . Disarmed . | . . . . . . . . . . . . . . . . . . . . . . . . . Reprogrammed . | . . . . . . . . . . . . . . . . . . . . . . . . . Reused . | . . . . . . . . . . . . . . . . . . . . . . . . . Traps Extracted . | . . . . . . . . . . . . . . . . . . . . . . . . . Installed . | . . . . . . . . . . . . . . . . . . . . . . . . . Triggered . | . . . . . . . . . . . . . . . . . . . . . . . . . Machines | -11 -10 -10 -10 -9 -8 -7 -7 -7 -7 -5 -5 -5 -4 -4 -4 -4 -4 -3 -2 -2 -2 -2 -1 -1 ---------- Run | Yrd Mat Min Exi Min Mat Fac Sto Rec Scr Fac Was Fac Fac Ext Cet Arc Hub Res Res Gar Res Gar Acc Com Machines Disabled 20 | . . . . . 3 . 2 . . 1 . 8 . 1 . 4 . . . 1 . . . . Max in Single Turn 8 | . . . . . 2 . 1 . . 1 . 8 . 1 . 1 . . . 1 . . . . Garrison Access 4 | . . . . . 1 1 . . . . . . 1 . . . . . . . . . 1 . Machines Repaired . | . . . . . . . . . . . . . . . . . . . . . . . . . Machines Dismantled . | . . . . . . . . . . . . . . . . . . . . . . . . . Machines Sabotaged . | . . . . . . . . . . . . . . . . . . . . . . . . . Overloaded Fab Kills . | . . . . . . . . . . . . . . . . . . . . . . . . . Hacking | -11 -10 -10 -10 -9 -8 -7 -7 -7 -7 -5 -5 -5 -4 -4 -4 -4 -4 -3 -2 -2 -2 -2 -1 -1 --------- Run | Yrd Mat Min Exi Min Mat Fac Sto Rec Scr Fac Was Fac Fac Ext Cet Arc Hub Res Res Gar Res Gar Acc Com Machines Accessed 79 | . 7 1 1 1 9 6 4 8 . 7 . 2 5 8 . 1 2 3 2 1 1 1 8 1 Terminals 59 | . 4 . . 1 5 5 4 4 . 6 . 2 4 8 . . 2 3 1 1 . 1 7 1 Fabricators . | . . . . . . . . . . . . . . . . . . . . . . . . . Repair Stations 2 | . 1 . . . 1 . . . . . . . . . . . . . . . . . . . Recycling Units 8 | . 2 . . . 2 . . 4 . . . . . . . . . . . . . . . . Scanalyzers . | . . . . . . . . . . . . . . . . . . . . . . . . . Garrison Access 7 | . . . . . 1 1 . . . 1 . . 1 . . . . . 1 . 1 . 1 . Total Hacks 169 | . 14 1 1 3 17 10 10 12 . 11 . 4 10 16 . 24 6 4 2 3 1 2 15 3 Successful 77 | . 4 1 1 2 10 4 4 6 . . . 2 5 4 . 24 1 1 1 . 1 . 6 . Failed 92 | . 10 . . 1 7 6 6 6 . 11 . 2 5 12 . . 5 3 1 3 . 2 9 3 Catastrophic 23 | . 1 . . . . 1 1 2 . 4 . 1 . 4 . . 1 2 1 1 . 1 2 1 Database Lockouts . | . . . . . . . . . . . . . . . . . . . . . . . . . Manual 73 | . 12 . 1 3 8 4 10 8 . 7 . 2 7 1 . 1 2 3 . . . . 4 . Terminals 121 | . 8 . . 3 12 8 10 8 . 10 . 4 9 16 . . 6 4 1 3 . 2 14 3 Fabricators . | . . . . . . . . . . . . . . . . . . . . . . . . . Repair Stations 4 | . 2 . . . 2 . . . . . . . . . . . . . . . . . . . Recycling Units 10 | . 4 . . . 2 . . 4 . . . . . . . . . . . . . . . . Scanalyzers . | . . . . . . . . . . . . . . . . . . . . . . . . . Garrison Access 8 | . . . . . 1 2 . . . 1 . . 1 . . . . . 1 . 1 . 1 . Terminal Hacks 46 | . . 1 1 2 2 2 1 1 . . . 1 2 4 . 24 1 . . . . . 4 . Record 24 | . . . . . . . . . . . . . . . . 24 . . . . . . . . Robot Analysis 2 | . . . . 2 . . . . . . . . . . . . . . . . . . . . Prototype ID Bank 3 | . . . . . . . 1 1 . . . . . . . . 1 . . . . . . . Open Door 8 | . . 1 . . . . . . . . . . 1 4 . . . . . . . . 2 . Level Access Points 1 | . . . . . . . . . . . . . . . . . . . . . . . 1 . Branch Access Points 2 | . . . . . . 1 . . . . . . . . . . . . . . . . 1 . Locate Traps 5 | . . . . . 2 1 . . . . . 1 1 . . . . . . . . . . . Proto ID Catalog 1 | . . . 1 . . . . . . . . . . . . . . . . . . . . . Fabricator Hacks . | . . . . . . . . . . . . . . . . . . . . . . . . . Repair Station Hacks 4 | . 2 . . . 2 . . . . . . . . . . . . . . . . . . . Scan Component 2 | . 1 . . . 1 . . . . . . . . . . . . . . . . . . . Repair 2 | . 1 . . . 1 . . . . . . . . . . . . . . . . . . . Recycling Unit Hacks . | . . . . . . . . . . . . . . . . . . . . . . . . . Scanalyzer . | . . . . . . . . . . . . . . . . . . . . . . . . . Garrison Access Hacks 6 | . . . . . 1 1 . . . . . . 1 . . . . . 1 . 1 . 1 . Unlock Access 2 | . . . . . . . . . . . . . . . . . . . 1 . 1 . . . Seal Access 4 | . . . . . 1 1 . . . . . . 1 . . . . . . . . . 1 . Unauthorized Hacks 21 | . 2 . . . 5 1 3 5 . . . 1 2 . . . . 1 . . . . 1 . Terminals 14 | . 1 . . . 3 1 3 1 . . . 1 2 . . . . 1 . . . . 1 . Botnet 14 | . 1 . . . 3 1 3 1 . . . 1 2 . . . . 1 . . . . 1 . Fabricators . | . . . . . . . . . . . . . . . . . . . . . . . . . Repair Stations . | . . . . . . . . . . . . . . . . . . . . . . . . . Recycling Units 7 | . 1 . . . 2 . . 4 . . . . . . . . . . . . . . . . Tunnel 7 | . 1 . . . 2 . . 4 . . . . . . . . . . . . . . . . Scanalyzers . | . . . . . . . . . . . . . . . . . . . . . . . . . Garrison Access . | . . . . . . . . . . . . . . . . . . . . . . . . . Data Cores Recovered 3 | . . . . . 1 . . . . . . . . . . . . 2 . . . . . . Used 1 | . . . . . . . . . . . . . . . . . . 1 . . . . . . Hacking Detections 60 | . 5 . . 1 6 4 5 5 . 7 . 2 3 8 . . 2 3 1 1 . 1 5 1 Full Trace Events 5 | . 1 . . . . . . . . . . . . 2 . . . . . . . . 2 . Feedback Events . | . . . . . . . . . . . . . . . . . . . . . . . . . Feedback Blocked . | . . . . . . . . . . . . . . . . . . . . . . . . . Robot Schematics Acquired . | . . . . . . . . . . . . . . . . . . . . . . . . . Robots Built . | . . . . . . . . . . . . . . . . . . . . . . . . . Authchips . | . . . . . . . . . . . . . . . . . . . . . . . . . Time . | . . . . . . . . . . . . . . . . . . . . . . . . . Total Robot Build Rating . | . . . . . . . . . . . . . . . . . . . . . . . . . Part Schematics Acquired . | . . . . . . . . . . . . . . . . . . . . . . . . . Parts Built . | . . . . . . . . . . . . . . . . . . . . . . . . . Authchips . | . . . . . . . . . . . . . . . . . . . . . . . . . Time . | . . . . . . . . . . . . . . . . . . . . . . . . . Total Part Build Rating . | . . . . . . . . . . . . . . . . . . . . . . . . . Parts Repaired 2 | . 1 . . . 1 . . . . . . . . . . . . . . . . . . . Time 64 | . 26 . . . 38 . . . . . . . . . . . . . . . . . . . Parts Recycled . | . . . . . . . . . . . . . . . . . . . . . . . . . Recycled Matter . | . . . . . . . . . . . . . . . . . . . . . . . . . Retrieved Matter . | . . . . . . . . . . . . . . . . . . . . . . . . . Retrieved Components . | . . . . . . . . . . . . . . . . . . . . . . . . . Parts Scanalyzed . | . . . . . . . . . . . . . . . . . . . . . . . . . Part Schematics Acquired . | . . . . . . . . . . . . . . . . . . . . . . . . . Parts Damaged . | . . . . . . . . . . . . . . . . . . . . . . . . . Bothacking | -11 -10 -10 -10 -9 -8 -7 -7 -7 -7 -5 -5 -5 -4 -4 -4 -4 -4 -3 -2 -2 -2 -2 -1 -1 ------------ Run | Yrd Mat Min Exi Min Mat Fac Sto Rec Scr Fac Was Fac Fac Ext Cet Arc Hub Res Res Gar Res Gar Acc Com Used RIF Installer 2 | . . . . . . . . . . . . . . . . . . . . 1 . 1 . . Patrol Navigation 1 | . . . . . . . . . . . . . . . . . . . . . . 1 . . Robots Hacked . | . . . . . . . . . . . . . . . . . . . . . . . . . Non-combat . | . . . . . . . . . . . . . . . . . . . . . . . . . Combat . | . . . . . . . . . . . . . . . . . . . . . . . . . Robot Hacks Applied . | . . . . . . . . . . . . . . . . . . . . . . . . . Relay Couplers Released 2 | . . . . . . 2 . . . . . . . . . . . . . . . . . . Machine Destruction 2 | . . . . . . 2 . . . . . . . . . . . . . . . . . . Fabnet Peak Effective % . | . . . . . . . . . . . . . . . . . . . . . . . . . Robots Rewired 15 | . . . . . . . . . . . . . . 15 . . . . . . . . . . Allies Hacked 3 | . . . . . . . . . . . . . . 3 . . . . . . . . . . Hacks Repelled . | . . . . . . . . . . . . . . . . . . . . . . . . . Allies | -11 -10 -10 -10 -9 -8 -7 -7 -7 -7 -5 -5 -5 -4 -4 -4 -4 -4 -3 -2 -2 -2 -2 -1 -1 -------- Run | Yrd Mat Min Exi Min Mat Fac Sto Rec Scr Fac Was Fac Fac Ext Cet Arc Hub Res Res Gar Res Gar Acc Com Total Allies 19 | . . . . . . . . . . . . . . 19 . . . . . . . . . . Largest Group 10 | . . . . . . . . . . . . . . 10 3 . . . . . . . . . Highest-Rated Group 425 | . . . . . . . . . . . . . . 425 130 . . . . . . . . . Highest-Rated Ally 51 | . . . . . . . . . . . . . . 51 46 . . . . . . . . . Total Orders 6 | . . 1 . . . 2 . . . 1 . . . . 2 . . . . . . . . . STAY 1 | . . . . . . . . . . . . . . . 1 . . . . . . . . . FOLLOW 1 | . . . . . . . . . . . . . . . 1 . . . . . . . . . RETURN 4 | . . 1 . . . 2 . . . 1 . . . . . . . . . . . . . . Ally Attacks 194 | . . . . . . . . . . 8 27 . . 122 37 . . . . . . . . . Total Damage 5999 | . . . . . . . . . . 489 1540 . . 3329 641 . . . . . . . . . Kills 29 | . . . . . . . . . . 4 . . . 21 4 . . . . . . . . . Allies Corrupted 1 | . . . . . . . . . . . . . . 1 . . . . . . . . . . Allies Melted . | . . . . . . . . . . . . . . . . . . . . . . . . . Turrets Deployed 3 | . . . . . . . . . . 1 2 . . . . . . . . . . . . . Intel | -11 -10 -10 -10 -9 -8 -7 -7 -7 -7 -5 -5 -5 -4 -4 -4 -4 -4 -3 -2 -2 -2 -2 -1 -1 ------- Run | Yrd Mat Min Exi Min Mat Fac Sto Rec Scr Fac Was Fac Fac Ext Cet Arc Hub Res Res Gar Res Gar Acc Com Active Infowar (turns) 7105 | . . . . . . . 236 1454 1093 771 . . . 52 236 1321 200 981 425 336 . . . . Optics 7053 | . . . . . . . 236 1454 1093 771 . . . . 236 1321 200 981 425 336 . . . . Cloaking 52 | . . . . . . . . . . . . . . 52 . . . . . . . . . . Robot Analysis Total 2 | . . . . 2 . . . . . . . . . . . . . . . . . . . . Derelict Logs Recovered 1 | . . 1 . . . . . . . . . . . . . . . . . . . . . . Drone Launches 4 | . . 1 . . . 2 . . . 1 . . . . . . . . . . . . . . Drone Recoveries 4 | . . 1 . . . 2 . . . 1 . . . . . . . . . . . . . . Exploration | -11 -10 -10 -10 -9 -8 -7 -7 -7 -7 -5 -5 -5 -4 -4 -4 -4 -4 -3 -2 -2 -2 -2 -1 -1 ------------- Run | Yrd Mat Min Exi Min Mat Fac Sto Rec Scr Fac Was Fac Fac Ext Cet Arc Hub Res Res Gar Res Gar Acc Com Turns Passed 18316 | 2 1114 694 647 130 1615 2689 278 1454 1093 1156 166 391 605 1985 493 1321 200 981 425 374 50 70 298 85 Spaces Moved 10534 | 1 600 268 337 68 766 1417 128 815 658 620 120 707 637 972 198 168 119 522 224 187 91 151 584 176 Core 1466 | . . . . . . . . . . . 67 660 104 7 . . . . . 44 42 58 460 24 Treads 6389 | . 582 27 . . 403 1417 128 815 658 620 53 . . 312 198 168 119 522 224 143 . . . . Legs 1540 | 1 18 241 337 68 363 . . . . . . . . 512 . . . . . . . . . . Wheels . | . . . . . . . . . . . . . . . . . . . . . . . . . Hover 11 | . . . . . . . . . . . . 11 . . . . . . . . . . . . Flight 1128 | . . . . . . . . . . . . 36 533 141 . . . . . . 49 93 124 152 Fastest Speed 23 | 120 120 160 190 190 120 166 166 166 166 167 50 36 36 23 160 160 160 160 160 50 30 30 40 40 Average Speed 138 | 120 159 198 190 190 160 169 166 166 166 167 102 49 72 143 160 160 160 160 160 134 39 39 47 41 Slowest Speed 330 | 120 240 330 190 190 250 250 166 166 166 167 240 50 250 260 160 160 160 160 160 160 50 50 50 50 Overloaded Moves . | . . . . . . . . . . . . . . . . . . . . . . . . . Propulsion Burnouts . | . . . . . . . . . . . . . . . . . . . . . . . . . Robots Hopped 21 | . . . . . . . . . . . 1 . 10 7 . . . . . . . . 3 . Potential Cave-ins 2 | . . . . . . . . . . . . . 2 . . . . . . . . . . . Cave-ins Triggered . | . . . . . . . . . . . . . . . . . . . . . . . . . Exploration Rate (%) 40 | 2 95 50 69 12 59 38 23 96 58 21 78 35 18 77 62 92 12 18 7 29 4 41 16 10 Regions Visited 24 Branch Regions 11 Pre-discovered Areas 8 | . 1 1 . . 2 . . 4 . . . . . . . . . . . . . . . . Known Exits Taken 5 | . . . . . . 1 . . . . . 1 . . . . . . 1 . 1 . 1 . Unknown Exits Taken 15 | 1 1 1 1 1 1 . 1 1 1 . . . 1 1 1 1 1 1 . . . . . . Scrap Searched 4 | . . 1 . . . . . . 3 . . . . . . . . . . . . . . . Spaces Dug 9 | . . . . . . . . . . . . . 8 . . . 1 . . . . . . . Terrain Destroyed 127 | . . . . . 26 1 . . . . . 27 24 16 . 10 1 4 1 17 . . . . Melee . | . . . . . . . . . . . . . . . . . . . . . . . . . Projectile 53 | . . . . . . 1 . . . . . . 24 7 . 10 1 4 1 5 . . . . AOE 74 | . . . . . 26 . . . . . . 27 . 9 . . . . . 12 . . . . Terrain Rammed . | . . . . . . . . . . . . . . . . . . . . . . . . . Walls Destroyed . | . . . . . . . . . . . . . . . . . . . . . . . . . Machines Disabled . | . . . . . . . . . . . . . . . . . . . . . . . . . Actions | -11 -10 -10 -10 -9 -8 -7 -7 -7 -7 -5 -5 -5 -4 -4 -4 -4 -4 -3 -2 -2 -2 -2 -1 -1 --------- Run | Yrd Mat Min Exi Min Mat Fac Sto Rec Scr Fac Was Fac Fac Ext Cet Arc Hub Res Res Gar Res Gar Acc Com Total 13183 | 1 707 343 346 68 1048 1607 162 850 659 688 143 735 713 1387 304 1093 126 593 264 302 101 160 596 187 Wait 1345 | . 59 6 . . 125 92 8 2 . 8 2 2 24 95 15 853 7 . 16 15 . . 6 10 Move 10473 | . 599 267 336 67 765 1416 127 814 657 620 117 706 616 961 197 167 118 521 223 185 91 150 577 176 Hop 17 | . . . . . . . . . . . 1 . 10 3 . . . . . . . . 3 . Pick Up 99 | . 6 4 7 . 22 11 2 . . 6 . 4 . 15 7 3 . 8 2 1 . . 1 . Fast Attach 133 | . 7 3 . . 22 10 3 . 1 . . 11 8 40 11 . . 6 . 1 7 . 2 1 Attach 74 | . 2 7 . . 8 2 . . . 9 3 2 1 12 7 . . 4 7 7 2 . 1 . Detach 47 | . 3 3 . . 5 . 1 . 1 2 . . 1 10 11 . . 4 1 3 1 . 1 . Swap 56 | 1 . 2 . . 9 9 1 2 . 6 . . . 12 2 1 . 2 4 5 . . . . Drop 107 | . 3 2 3 . 34 18 3 1 . 6 2 4 . 15 7 . . 8 . 1 . . . . Fire 618 | . 28 47 . . 55 43 17 29 . 28 18 . 53 62 47 68 1 40 11 69 . . 2 . Melee 12 | . . . . . . . . . . . . 6 . 6 . . . . . . . . . . Ram 3 | . . . . . . . . . . . . . . . . . . . . . . . 3 . Kick 5 | . . 2 . 1 1 . . . . . . . . 1 . . . . . . . . . . Crush 14 | . . . . . 2 6 . 2 . 3 . . . . . 1 . . . . . . . . Escape Stasis 30 | . . . . . . . . . . . . . . 5 . . . . . 15 . 10 . . Rewire 150 | . . . . . . . . . . . . . . 150 . . . . . . . . . . Trap . | . . . . . . . . . . . . . . . . . . . . . . . . . Miscellaneous . | . . . . . . . . . . . . . . . . . . . . . . . . . Route ------- -11/Scrapyard -10/Materials (discovered 5 exits: [*Mat x3] / *Min x2) -10/Mines -10/Exiles -9/Mines -8/Materials -7/Factory (discovered 6 exits: *Fac x2 / *Sto x2 / *Low x2) -7/Storage -7/Recycling (discovered 2 exits: *Fac / [*Scr]) -7/Scraptown -5/Factory -5/Waste -5/Factory -4/Factory -4/Extension (discovered 2 exits: *Res / [*Cet]) -4/Cetus (discovered 2 exits: *Res / *Arc) -4/Archives (discovered 3 exits: *Res / *Hub x2) -4/Hub_04(d) -3/Research -2/Research -2/Garrison -2/Research -2/Garrison -1/Access (discovered 2 exits: Sur / *Com) -1/Command History --------- Turn | Location | Event 3 | -11/Scrapyard | Discovered new exit (range 0) 3 | -11/Scrapyard | Entered Materials 317 | -10/Materials | Build established: Mutant 349 | -10/Materials | Discovered new exit (range 14) 504 | -10/Materials | Repaired Assault Rifle 642 | -10/Materials | Discovered new exit (range 4) 827 | -10/Materials | Discovered new exit (range 12) 947 | -10/Materials | Discovered new exit (range 10) 1045 | -10/Materials | Discovered new exit (range 9) 1117 | -10/Materials | Entered Mines 1220 | -10/Mines | Core integrity fell below 50% 1270 | -10/Mines | Lost 7 parts (1p2n4w) 1383 | -10/Mines | Found a Scrap Suit stashed away for nefarious purposes 1394 | -10/Mines | Learned location of Storage (-7) 1446 | -10/Mines | Excavation squad dispatched 1446 | -10/Mines | A large section of the Mines collapsed 1495 | -10/Mines | Found the Drone Emporium 1504 | -10/Mines | Found Prototype Device 1504 | -10/Mines | Identified Sensor Drone Bay 1696 | -10/Mines | Excavation squad dispatched 1734 | -10/Mines | Core integrity fell below 20% 1801 | -10/Mines | Deemed a non-threat by the Exiles lab entrance 1803 | -10/Mines | Discovered new exit (range 5) 1811 | -10/Mines | Entered Exiles 1863 | -10/Exiles | Met 8R-AWN 1889 | -10/Exiles | Met EX-HEX 1943 | -10/Exiles | Met EX-BIN 1969 | -10/Exiles | Aligned with FarCom system 1971 | -10/Exiles | Given EX-Vault access code 2015 | -10/Exiles | Opened EX-Vault 2026 | -10/Exiles | Found Deploy-a-Sentry 2029 | -10/Exiles | Found Deploy-a-Sentry 2032 | -10/Exiles | Found Deploy-a-Sentry 2069 | -10/Exiles | Warned to stay clear of 0b10 Research branches 2361 | -10/Exiles | Met EX-DEC 2436 | -10/Exiles | Discovered new exit (range 14) 2458 | -10/Exiles | Left Exiles lab with Deploy-a-Sentry 2458 | -10/Exiles | Entered Mines 2540 | -9/Mines | Discovered new exit (range 8) 2588 | -9/Mines | Entered Materials 2588 | -8/Materials | Evolved 4 slots: Propulsion x1, Utility x2, Weapon x1 2890 | -8/Materials | Build established: Skirmisher 3390 | -8/Materials | Garrison activated, responded to threat 3632 | -8/Materials | Discovered new exit (range 3) 3707 | -8/Materials | Lost 3 parts (2u1w) 3971 | -8/Materials | Repaired Lgt. Deuterium Engine 4203 | -8/Materials | Entered Factory 4203 | -7/Factory | Evolved 2 slots: Utility x2 4467 | -7/Factory | Build established: Tank 5065 | -7/Factory | Build established: Gunner 5289 | -7/Factory | Discovered new exit (range 7) 5305 | -7/Factory | Identified exit to Factory 5592 | -7/Factory | Discovered exit to Factory (range 11) 6165 | -7/Factory | Discovered new exit (range 10) 6193 | -7/Factory | Identified exit to Lower Caves 6281 | -7/Factory | Identified exit to Storage 6892 | -7/Factory | Entered Storage 7164 | -7/Storage | Used back door to open Recycling access 7164 | -7/Storage | Discovered new exit (range 5) 7170 | -7/Storage | Entered Recycling 7171 | -7/Recycling | Met a Zionite searching for Scraptown 7197 | -7/Recycling | Build established: Tank 7911 | -7/Recycling | Build established: Skirmisher 8161 | -7/Recycling | Discovered new exit (range 11) 8586 | -7/Recycling | Scanned before Scraplab entrance 8609 | -7/Recycling | Entered Scraplab 8623 | -7/Recycling | Discovered new exit (range 2) 8624 | -7/Recycling | Entered Scraptown 8851 | -7/Scraptown | Heard Great Nut preacher, LISTEN AND RECITE! 8869 | -7/Scraptown | Visited TADAMA 8909 | -7/Scraptown | Turned away by UFD registrar 8930 | -7/Scraptown | Build established: Gunner 8932 | -7/Scraptown | Visited Cave Peace 8967 | -7/Scraptown | Visited Symbiants 9324 | -7/Scraptown | Visited Assassins FH 9344 | -7/Scraptown | Visited Comm Corps 9407 | -7/Scraptown | Visited Cyclists 9423 | -7/Scraptown | Visited The Evicted 9528 | -7/Scraptown | Discovered new exit (range 13) 9717 | -7/Scraptown | Entered Factory 9717 | -5/Factory | Evolved 4 slots: Power x1, Propulsion x1, Utility x1, Weapon x1 10014 | -5/Factory | Build established: Tank 10270 | -5/Factory | Garrison activated, responded to threat 10689 | -5/Factory | Discovered new exit (range 5) 10708 | -5/Factory | Identified exit to Factory 10818 | -5/Factory | DAS Turret deployed 10873 | -5/Factory | Sucked down chute 10873 | -5/Factory | Entered Waste 10879 | -5/Waste | Spotted C-40 Crusher 10882 | -5/Waste | DAS Turret deployed 10884 | -5/Waste | DAS Turret deployed 10888 | -5/Waste | EMP discharged 10888 | -5/Waste | System corruption reached 10% 10903 | -5/Waste | Crushed by Compactor (1 part destroyed, 1 dropped) 10903 | -5/Waste | Spotted C-40 Crusher 10903 | -5/Waste | Spotted C-40 Crusher 10912 | -5/Waste | Destroyed C-40 Crusher 10915 | -5/Waste | Crushed by Compactor (1 part destroyed, 2 dropped) 10925 | -5/Waste | Destroyed C-40 Crusher 10946 | -5/Waste | Lost 4 parts (2p2w) 10980 | -5/Waste | Crushed by Compactor (1 part destroyed, 1 dropped) 10985 | -5/Waste | Crushed by Compactor (1 part destroyed, 1 dropped) 10988 | -5/Waste | EMP discharged 11001 | -5/Waste | Spotted C-40 Crusher 11005 | -5/Waste | Crushed by Compactor (1 part destroyed, 1 dropped) 11006 | -5/Waste | Released all parts (5) 11009 | -5/Waste | Spotted C-40 Crusher 11027 | -5/Waste | Spotted C-40 Crusher 11031 | -5/Waste | Discovered new exit (range 15) 11036 | -5/Waste | Lost 3 parts (1n1u1w) 11039 | -5/Waste | Entered Factory 11204 | -5/Factory | Found Exp. Targeting Computer 11206 | -5/Factory | Found Exp. Targeting Computer 11208 | -5/Factory | Found Exp. Targeting Computer 11229 | -5/Factory | Build established: Mutant 11394 | -5/Factory | Core integrity fell below 50% 11426 | -5/Factory | Discovered exit to Factory (range 7) 11430 | -5/Factory | Entered another Factory area 11430 | -4/Factory | Evolved 2 slots: Propulsion x2 12025 | -4/Factory | Spotted B-86 Titan 12034 | -4/Factory | Discovered new exit (range 5) 12035 | -4/Factory | Entered Extension 12158 | -4/Extension | Lost 11 parts (2p6n3w) 12306 | -4/Extension | Rescued a captive Derelict 12471 | -4/Extension | Build established: Scavenger-Mutant 12492 | -4/Extension | Rescued a captive Derelict 12811 | -4/Extension | Build established: Scavenger-Gunner 13010 | -4/Extension | Spotted B-86 Titan 13049 | -4/Extension | Destroyed B-86 Titan 13078 | -4/Extension | Lost 3 allies 13151 | -4/Extension | Spotted B-86 Titan 13228 | -4/Extension | Destroyed B-86 Titan 13600 | -4/Extension | Rescued a captive Derelict 13635 | -4/Extension | Disrupted transfer network 13783 | -4/Extension | Rescued a captive Derelict 13789 | -4/Extension | Rescued a captive Derelict 13863 | -4/Extension | Build established: Scavenger-Tank 13987 | -4/Extension | Discovered new exit (range 10) 13988 | -4/Extension | Discovered new exit (range 6) 14003 | -4/Extension | Disrupted transfer network 14015 | -4/Extension | P-70 Sage assimilated allied EV-9M9(b) 14020 | -4/Extension | Entered Cetus 14020 | -4/Cetus | Accompanied by 3 allies 14041 | -4/Cetus | Spotted Cetus Guard 14044 | -4/Cetus | Spotted Cetus Guard 14045 | -4/Cetus | Spotted Cetus Guard 14054 | -4/Cetus | Spotted Cetus Guard 14058 | -4/Cetus | Allies destroyed Cetus Guard 14061 | -4/Cetus | Allies destroyed Cetus Guard 14085 | -4/Cetus | Destroyed Cetus Guard 14092 | -4/Cetus | Lost 6 allies 14096 | -4/Cetus | Allies destroyed Cetus Guard 14107 | -4/Cetus | Lost 6 parts (2p1n2u1w) 14290 | -4/Cetus | Discovered new exit (range 20) 14319 | -4/Cetus | Spotted Cetus Guard 14319 | -4/Cetus | Spotted Cetus Guard 14323 | -4/Cetus | Spotted Cetus Guard 14329 | -4/Cetus | Destroyed Cetus Guard 14335 | -4/Cetus | Spotted Cetus Guard 14338 | -4/Cetus | Destroyed Cetus Guard 14359 | -4/Cetus | Destroyed Cetus Guard 14386 | -4/Cetus | Destroyed Cetus Guard 14402 | -4/Cetus | Discovered new exit (range 20) 14420 | -4/Cetus | Met Revision 17 14513 | -4/Cetus | Entered Archives 14551 | -4/Archives | Core integrity fell below 50% 14686 | -4/Archives | Discovered new exit (range 16) 14719 | -4/Archives | Discovered new exit (range 17) 14736 | -4/Archives | Discovered new exit (range 14) 15742 | -4/Archives | Unable to access archive contents 15759 | -4/Archives | Unable to access archive contents 15834 | -4/Archives | Entered Hub_04(d) 15838 | -4/Hub_04(d) | Discovered new exit (range 19) 16034 | -4/Hub_04(d) | Entered Research 16034 | -3/Research | Evolved 2 slots: Utility x2 16234 | -3/Research | Revision forces began assault on 0b10 16265 | -3/Research | Met up with Revision 17++ 16283 | -3/Research | Found Prototype Processor 16283 | -3/Research | Identified Exp. Signal Interpreter 16734 | -3/Research | Research terminal network offline 16905 | -3/Research | Lost 4 allies 16919 | -3/Research | Discovered new exit (range 17) 16943 | -3/Research | Spotted Striker 16981 | -3/Research | Lost 3 allies 17015 | -3/Research | Entered another Research area 17015 | -2/Research | Evolved 2 slots: Power x1, Utility x1 17036 | -2/Research | Found Quantum Capacitor 17429 | -2/Research | Identified exit to Garrison 17440 | -2/Research | Entered Garrison 17475 | -2/Garrison | Installed Relay Interface Framework 17560 | -2/Garrison | Spotted B-90 Cyclops 17611 | -2/Garrison | Destroyed B-90 Cyclops 17706 | -2/Garrison | Triggered checkpoint 17709 | -2/Garrison | Triggered checkpoint 17751 | -2/Garrison | System corruption reached 10% 17776 | -2/Garrison | Released all parts (10) 17795 | -2/Garrison | Lost 9 parts (1p3n4u1w) 17796 | -2/Garrison | Destroyed 7 combat bots 17805 | -2/Garrison | Discovered new exit (range 15) 17814 | -2/Garrison | Entered Research 17864 | -2/Research | Identified exit to Garrison 17864 | -2/Research | Entered Garrison 17875 | -2/Garrison | Expanded RIF knowledge: Patrol Navigation 17878 | -2/Garrison | Triggered checkpoint 17889 | -2/Garrison | Spotted B-90 Cyclops 17893 | -2/Garrison | Triggered checkpoint 17910 | -2/Garrison | Core integrity fell below 50% 17916 | -2/Garrison | Core integrity fell below 20% 17927 | -2/Garrison | Discovered new exit (range 13) 17928 | -2/Garrison | Lost 8 parts (1p6n1u) 17934 | -2/Garrison | Entered Access 17934 | -1/Access | Evolved 2 slots: Propulsion x1, Utility x1 18121 | -1/Access | Identified exit to Command 18121 | -1/Access | Identified exit to Surface 18159 | -1/Access | Core integrity fell below 50% 18189 | -1/Access | Build established: Mutant 18201 | -1/Access | Core integrity fell below 20% 18222 | -1/Access | Door terminal overloaded 18232 | -1/Access | Entered Command 18316 | -1/Command | Spotted Executioner 18316 | -1/Command | Spotted Executioner 18316 | -1/Command | Spotted Executioner 18316 | -1/Command | Spotted Executioner 18316 | -1/Command | Spotted Striker 18316 | -1/Command | Spotted Striker 18316 | -1/Command | Spotted Alpha 7 18316 | -1/Command | Spotted Alpha 7 18316 | -1/Command | Spotted B-99 Colossus 18317 | -1/Command | Destroyed by Executioner with Helical Railgun Last Messages --------------- Sealed Barrier opened. LOCATION=COMMAND GOAL=ESCAPE 18232_ ALERT: Rogue bot within command proximity. Terminate immediately. 18232_ Receiving FarCom transmissions... 18237_ Connecting with Cave Seal Controls... 18244_ Acquired Field Propulsion Array. 18278_ 8FZ8/BCWUC/A/N 18312_ Penetrated by Slug. 18312_ Slug penetrates Wall. 18312_ Penetrated by Slug. 18315_ Slug penetrates Door. 18315_ Penetrated by Slug. 18316_ Field Propulsion Array destroyed. 18316_ Penetrated by Slug. 18316_ Slug penetrates Wall. 18316_ Knocked back. 18317_ Penetrated by Slug. Map ----- +----------------------------------------------------+ | ?????????????????????????????????????????????????# | | ?????????????????????????????????????????????????# | | ?????????????????????????????????????????????????# | | ?????????????????????????????????????????????????# | | ?????????????????????????????????????????????????# | | ?????????????????????????????????????????????????# | | ??????????????????????????????????????????######?# | | ??????????????????????????????????????????# # | | ??????????????????????????????????????????#!! # | | ??????????????????????????????????????????#!! + | | ????????????????????????????" ??????????#!! # | | ??????????????????????????"" #?????????# # | | ????????????????????????? #?????????# ?# | | ????????????????????????? #?????????######?# | | ?????????????????????????? k#???????????###### | | ??????????????????????????# #???????????# | | ??????????????????????????# #???????????# | | ??????????????????????????# #???????????# | | ??????????????????????????# #???????????# | | ???????????? ????#?####???# +???????????# | | ???????????? BB# # #K#7##?# #???????????# | | ???????????" E E ## ###+#####???# | | ???????????" / #???# | | ???????????" / % #???# | | ???????????" /% h ##### | | ???????????" @ h + | | ???????????" E K 7 ######## ##### | | ?????????? #E# # # ##???????# #???### ## | | ?????????????BB??????#??????????# #?????###? | | ?????????????BB?????????????????# #????????? | | ????????????????????????????????# #????????? | | ????????????????????????????????# #????????? | | ????????????????????????????????# ???????? | | ????????????????????????????????+ ##### ??????? | | ????????????????????????????????# #?????#?????? | | ????????????????????????????????+ #???????????? | | ????????????????????????????????##+###???????????? | | ?????????????????????????????????????????????????? | | ?????????????????????????????????????????????????? | | ?????????????????????????????????????????????????? | | ?????????????????????????????????????????????????? | | ?????????????????????????????????????????????????? | | ?????????????????????????????????????????????????? | | ?????????????????????????????????????????????????? | | ?????????????????????????????????????????????????? | | ?????????????????????????????????????????????????? | | ?????????????????????????????????????????????????? | | ?????????????????????????????????????????????????? | | ?????????????????????????????????????????????????? | | ?????????????????????????????????????????????????? | +----------------------------------------------------+ Best States ------------- Heat Dissipation 144 Coolant Potential 65 Energy Generation 57 Energy Capacity 985 Matter Stores 300 Matter Capacity 300 Sight Range 20 Terrain Scan Density 210 Cloak Strength 3 Corruption Block 8 Armor Coverage 900 Resistance: EM 15 Point Defense Rating 160 Weapon Cycling 15 Evasion (%) 78 Targeting Accuracy 36 Launcher Accuracy 30 Target Analysis 5 Core Analysis 6 Recoil Reduction 6 Particle Charging 20 Offensive Hacking 10 Defensive Hacking 14 Item Schematics ----------------- None Robot Schematics ------------------ None Fabricated ------------ Nothing Repaired ---------- Assault Rifle | 37% | -10/Materials Lgt. Deuterium Engine | 12% | -8/Materials Alien Tech Used ----------------- None Achievements -------------- None Challenges ------------ None Game ------ Seed IntegratedStasisSheargun Manual? 0 Play Time 02:07:28 Cumulative 335.8 hours Start 2025.06.18 @ 19:17:45 End 2025.06.18 @ 21:25:40 Sessions 1 Manual Loads 0 Difficulty Rogue Special Mode None Game No. 234 Rogue 234 Adventurer 0 Explorer 0 Win Type - Total 25 Types 19/0/4/2/0/0/0/0/0/0 Lore% 88 Gallery% 76 Achievement% 66 Wizard Run 0 Options --------- Layout 0 ASCII 1 Keyboard 1 Movement Arrows Keybinds 0 Fullscreen 2 Font 18/Terminus Map View 76x50 Zoom Use 0% Tactical HUD 1 Map Filters NONE Filters NONE Steam 1 RUN: 0890fb30-9c34-400f-95cd-2f974d2642d0